fUST/lending_fUST_20250627
["ID","MTS","AMOUNT","RATE_DAILY","PERIOD"]
[368031401,1750999845333,-789.54,0.0002,2]
[368031403,1750999845342,-608.35,0.0002,2]
[368031404,1750999845351,-460.0,0.0002,2]
[368031406,1750999845360,-460.0,0.0002,2]
[368031408,1750999845369,-460.0,0.0002,2]
[368031410,1750999845379,-582.08,0.0002,2]
[368031412,1750999845388,-460.0,0.0002,2]
[368031414,1750999845397,-460.0,0.0002,2]
[368031416,1750999845406,-460.0,0.0002,2]
[368031417,1750999845414,-460.0,0.0002,2]
[368031419,1750999845424,-460.0,0.0002,2]
[368031421,1750999845434,-460.0,0.0002,2]
[368031423,1750999845446,-460.0,0.0002,2]
[368031425,1750999845455,-1486.78,0.0002,2]
[368031427,1750999845465,-503.6,0.0002,2]
[368031429,1750999845475,-746.29,0.0002,2]
[368031431,1750999845484,-460.0,0.0002,2]
[368031433,1750999845493,-2370.59,0.0002,2]
[368031435,1750999845502,-4034.46,0.0002,2]
[368031436,1750999845513,-464.56,0.0002,2]
[368031437,1750999845522,-460.0,0.0002,2]
[368031438,1750999845531,-460.0,0.0002,2]
[368031439,1750999845540,-1565.51,0.0002,2]
[368031441,1750999845550,-1932.3,0.0002,2]
[368031443,1750999845559,-460.0,0.0002,2]
[368031445,1750999845568,-769.44,0.0002,2]
[368031446,1750999845577,-607.12,0.0002,2]
[368031448,1750999845586,-692.62,0.0002,2]
[368031450,1750999845595,-460.0,0.0002,2]
[368031452,1750999845604,-460.0,0.0002,2]
[368031454,1750999845614,-460.0,0.0002,2]
[368031456,1750999845623,-3255.31,0.0002,2]
[368031458,1750999845632,-1002.12,0.0002,2]
[368031460,1750999845641,-1860.43,0.0002,2]
[368031462,1750999845651,-460.0,0.0002,2]
[368031464,1750999845660,-460.0,0.0002,2]
[368031466,1750999845669,-1085.41,0.0002,2]
[368031468,1750999845679,-919.91,0.0002,2]
[368031470,1750999845688,-460.0,0.0002,2]
[368031472,1750999845697,-2262.32,0.0002,2]
[368031474,1750999845706,-300.0,0.00020005,2]
[368031476,1750999845715,-714.66341437,0.0002003,2]
[368031478,1750999845725,-7751.56468322,0.00020107,2]
[368031480,1750999845735,-2772.0,0.00020141,2]
[368031482,1750999845744,-500.0,0.00020241,2]
[368031484,1750999845753,-415.32561581,0.00020267,2]
[368031486,1750999845763,-603.99,0.00020272,2]
[368031488,1750999845772,-603.99,0.00020272,2]
[368031490,1750999845782,-603.99,0.00020272,2]
[368031493,1750999845791,-603.99,0.00020272,2]
[368031495,1750999845800,-604.10618838,0.00020272,2]
[368031497,1750999845812,-460.0,0.00020273,2]
[368031499,1750999845821,-460.0,0.00020273,2]
[368031501,1750999845830,-511.06,0.00020273,2]
[368031503,1750999845840,-460.0,0.00020273,2]
[368031505,1750999845849,-468.57303576,0.00020273,2]
[368031507,1750999845858,-460.0,0.00020273,2]
[368031508,1750999845868,-460.0,0.00020273,2]
[368031510,1750999845877,-460.0,0.00020273,2]
[368031512,1750999845887,-851.95,0.00020273,2]
[368031514,1750999845897,-460.0,0.00020273,2]
[368031516,1750999845906,-506.47,0.00020273,2]
[368031518,1750999845915,-781.26,0.00020273,2]
[368031520,1750999845924,-460.0,0.00020273,2]
[368031522,1750999845933,-460.0,0.00020273,2]
[368031524,1750999845942,-460.0,0.00020273,2]
[368031526,1750999845951,-460.0,0.00020273,2]
[368031528,1750999845960,-460.0,0.00020273,2]
[368031530,1750999845970,-460.0,0.00020273,2]
[368031532,1750999845979,-460.0,0.00020273,2]
[368031534,1750999845988,-511.66,0.00020273,2]
[368031535,1750999845997,-460.0,0.00020273,2]
[368031536,1750999846006,-460.0,0.00020273,2]
[368031537,1750999846015,-460.0,0.00020273,2]
[368031538,1750999846025,-460.0,0.00020273,2]
[368031539,1750999846035,-755.82,0.00020273,2]
[368031540,1750999846044,-579.61,0.00020273,2]
[368031541,1750999846057,-460.0,0.00020273,2]
[368031542,1750999846065,-460.0,0.00020273,2]
[368031543,1750999846075,-460.0,0.00020273,2]
[368031544,1750999846084,-582.57,0.00020273,2]
[368031545,1750999846093,-1368.78,0.00020273,2]
[368031546,1750999846102,-519.86919444,0.00020273,2]
[368031547,1750999846110,-460.0,0.00020273,2]
[368031548,1750999846119,-558.64,0.00020273,2]
[368031549,1750999846128,-460.0,0.00020273,2]
[368031550,1750999846137,-460.0,0.00020273,2]
[368031551,1750999846146,-525.28,0.00020273,2]
[368031552,1750999846155,-460.0,0.00020273,2]
[368031553,1750999846166,-1698.41,0.00020273,2]
[368031554,1750999846175,-698.59,0.00020273,2]
[368031555,1750999846184,-460.0,0.00020273,2]
[368031556,1750999846193,-460.0,0.00020273,2]
[368031557,1750999846202,-516.57,0.00020273,2]
[368031558,1750999846211,-460.0,0.00020273,2]
[368031559,1750999846221,-1646.94,0.00020273,2]
[368031560,1750999846230,-538.65,0.00020273,2]
[368031561,1750999846239,-460.0,0.00020273,2]
[368031563,1750999846248,-464.71,0.00020273,2]
[368031565,1750999846257,-2283.74,0.00020273,2]
[368031567,1750999846267,-460.0,0.00020273,2]
[368031569,1750999846276,-460.0,0.00020273,2]
[368031571,1750999846285,-460.0,0.00020273,2]
[368031573,1750999846295,-1208.66,0.00020273,2]
[368031575,1750999846306,-460.0,0.00020273,2]
[368031578,1750999846316,-460.0,0.00020273,2]
[368031580,1750999846325,-837.04,0.00020273,2]
[368031582,1750999846334,-1824.86,0.00020273,2]
[368031584,1750999846344,-2140.66,0.00020273,2]
[368031586,1750999846353,-730.84,0.00020273,2]
[368031588,1750999846363,-789.54,0.00020273,2]
[368031590,1750999846372,-608.35,0.00020273,2]
[368031592,1750999846381,-460.0,0.00020273,2]
[368031593,1750999846390,-460.0,0.00020273,2]
[368031595,1750999846399,-460.0,0.00020273,2]
[368031597,1750999846409,-582.08,0.00020273,2]
[368031599,1750999846418,-460.0,0.00020273,2]
[368031601,1750999846427,-460.0,0.00020273,2]
[368031603,1750999846438,-460.0,0.00020273,2]
[368031605,1750999846447,-460.0,0.00020273,2]
[368031607,1750999846456,-460.0,0.00020273,2]
[368031609,1750999846465,-460.0,0.00020273,2]
[368031611,1750999846475,-460.0,0.00020273,2]
[368031613,1750999846485,-1486.78,0.00020273,2]
[368031615,1750999846494,-503.6,0.00020273,2]
[368031628,1750999846603,-746.29,0.00020273,2]
[368031630,1750999846627,-460.0,0.00020273,2]
[368031632,1750999846636,-2370.59,0.00020273,2]
[368031634,1750999846646,-4034.46,0.00020273,2]
[368031636,1750999846655,-464.56,0.00020273,2]
[368031638,1750999846665,-460.0,0.00020273,2]
[368031640,1750999846674,-460.0,0.00020273,2]
[368031642,1750999846684,-1565.51,0.00020273,2]
[368031644,1750999846694,-1932.3,0.00020273,2]
[368031646,1750999846703,-460.0,0.00020273,2]
[368031648,1750999846713,-769.44,0.00020273,2]
[368031650,1750999846722,-607.12,0.00020273,2]
[368031652,1750999846732,-692.62,0.00020273,2]
[368031654,1750999846742,-460.0,0.00020273,2]
[368031656,1750999846751,-451.26083996,0.00020273,2]
[368031658,1750999846761,-460.0,0.00020273,2]
[368031660,1750999846770,-3255.31,0.00020273,2]
[368031662,1750999846780,-1002.12,0.00020273,2]
[368031664,1750999846790,-1860.43,0.00020273,2]
[368031666,1750999846799,-460.0,0.00020273,2]
[368031668,1750999846809,-460.0,0.00020273,2]
[368031670,1750999846819,-1085.41,0.00020273,2]
[368031672,1750999846828,-919.91,0.00020273,2]
[368031674,1750999846838,-338.68764404,0.00020273,2]
[368031676,1750999846847,-2262.32,0.00020273,2]
[368031678,1750999846856,-500.69141328,0.00020313,2]
[368031680,1750999846865,-7751.56468322,0.00020314,3]
[368031682,1750999846875,-25136.47832711,0.00020413,2]
[368031684,1750999846885,-5000.0,0.00020413,2]
[368031686,1750999846894,-151.0,0.000205,4]
[368031688,1750999846904,-213.75309343,0.00020521,3]
[368031690,1750999846913,-12562.41216491,0.00020521,3]
[368031692,1750999846922,-847.04181546,0.00020521,3]
[368031694,1750999846932,-160.0,0.00020521,3]
[368031696,1750999846941,-7751.56468322,0.00020521,3]
[368031698,1750999846950,-460.0,0.00020547,2]
[368031700,1750999846959,-460.0,0.00020547,2]
[368031702,1750999846968,-511.06,0.00020547,2]
[368031704,1750999846977,-214.82079012,0.00020547,2]
[368031706,1750999846988,-460.0,0.00020547,2]
[368031708,1750999846997,-460.0,0.00020547,2]
[368031709,1750999847006,-460.0,0.00020547,2]
[368031712,1750999847016,-851.95,0.00020547,2]
[368031714,1750999847025,-460.0,0.00020547,2]
[368031716,1750999847035,-781.26,0.00020547,2]
[368031718,1750999847044,-460.0,0.00020547,2]
[368031720,1750999847054,-460.0,0.00020547,2]
[368031721,1750999847063,-460.0,0.00020547,2]
[368031723,1750999847073,-460.0,0.00020547,2]
[368031725,1750999847084,-460.0,0.00020547,2]
[368031727,1750999847094,-460.0,0.00020547,2]
[368031729,1750999847104,-511.66,0.00020547,2]
[368031731,1750999847113,-460.0,0.00020547,2]
[368031733,1750999847123,-460.0,0.00020547,2]
[368031735,1750999847133,-460.0,0.00020547,2]
[368031737,1750999847142,-460.0,0.00020547,2]
[368031739,1750999847152,-755.82,0.00020547,2]
[368031741,1750999847162,-579.61,0.00020547,2]
[368031743,1750999847171,-460.0,0.00020547,2]
[368031745,1750999847180,-460.0,0.00020547,2]
[368031747,1750999847189,-460.0,0.00020547,2]
[368031749,1750999847199,-582.57,0.00020547,2]
[368031751,1750999847208,-1368.78,0.00020547,2]
[368031753,1750999847218,-460.0,0.00020547,2]
[368031755,1750999847227,-558.64,0.00020547,2]
[368031757,1750999847236,-460.0,0.00020547,2]
[368031759,1750999847245,-460.0,0.00020547,2]
[368031761,1750999847256,-525.28,0.00020547,2]
[368031763,1750999847267,-460.0,0.00020547,2]
[368031765,1750999847276,-698.59,0.00020547,2]
[368031767,1750999847285,-460.0,0.00020547,2]
[368031769,1750999847294,-1698.41,0.00020547,2]
[368031771,1750999847305,-460.0,0.00020547,2]
[368031773,1750999847314,-516.57,0.00020547,2]
[368031775,1750999847324,-460.0,0.00020547,2]
[368031777,1750999847333,-1646.94,0.00020547,2]
[368031779,1750999847342,-538.65,0.00020547,2]
[368031781,1750999847351,-460.0,0.00020547,2]
[368031783,1750999847361,-464.71,0.00020547,2]
[368031785,1750999847370,-2283.74,0.00020547,2]
[368031787,1750999847380,-460.0,0.00020547,2]
[368031789,1750999847389,-460.0,0.00020547,2]
[368031791,1750999847398,-481.04,0.00020547,2]
[368031793,1750999847407,-1208.66,0.00020547,2]
[368031795,1750999847417,-460.0,0.00020547,2]
[368031797,1750999847427,-460.0,0.00020547,2]
[368031799,1750999847439,-837.04,0.00020547,2]
[368031801,1750999847448,-1824.86,0.00020547,2]
[368031803,1750999847457,-2140.66,0.00020547,2]
[368031805,1750999847467,-730.84,0.00020547,2]
[368031807,1750999847477,-789.54,0.00020547,2]
[368031809,1750999847486,-608.35,0.00020547,2]
[368031811,1750999847496,-460.0,0.00020547,2]
[368031813,1750999847505,-346.66027575,0.00020547,2]
[368031814,1750999847515,-460.0,0.00020547,2]
[368031817,1750999847525,-582.08,0.00020547,2]
[368031818,1750999847534,-460.0,0.00020547,2]
[368031821,1750999847544,-460.0,0.00020547,2]
[368031823,1750999847555,-460.0,0.00020547,2]
[368031824,1750999847564,-460.0,0.00020547,2]
[368031826,1750999847573,-460.0,0.00020547,2]
[368031828,1750999847583,-460.0,0.00020547,2]
[368031830,1750999847594,-460.0,0.00020547,2]
[368031832,1750999847604,-1486.78,0.00020547,2]
[368031834,1750999847613,-503.6,0.00020547,2]
[368031836,1750999847622,-746.29,0.00020547,2]
[368031838,1750999847631,-460.0,0.00020547,2]
[368031840,1750999847640,-2370.59,0.00020547,2]
[368031842,1750999847650,-4034.46,0.00020547,2]
[368031844,1750999847659,-464.56,0.00020547,2]
[368031846,1750999847668,-171.16474239,0.00020547,2]
[368031848,1750999847678,-460.0,0.00020547,2]
[368031850,1750999847688,-1565.51,0.00020547,2]
[368031852,1750999847697,-1932.3,0.00020547,2]
[368031854,1750999847707,-460.0,0.00020547,2]
[368031856,1750999847716,-769.44,0.00020547,2]
[368031858,1750999847726,-607.12,0.00020547,2]
[368031860,1750999847736,-692.62,0.00020547,2]
[368031862,1750999847745,-460.0,0.00020547,2]
[368031864,1750999847754,-460.0,0.00020547,2]
[368031866,1750999847763,-3255.31,0.00020547,2]
[368031868,1750999847773,-1002.12,0.00020547,2]
[368031870,1750999847782,-1860.43,0.00020547,2]
[368031872,1750999847792,-460.0,0.00020547,2]
[368031874,1750999847801,-460.0,0.00020547,2]
[368031876,1750999847810,-1085.41,0.00020547,2]
[368031878,1750999847820,-919.91,0.00020547,2]
[368031880,1750999847829,-2262.32,0.00020547,2]
[368031882,1750999847838,-5022.73,0.000206,2]
[368031884,1750999847847,-753.0,0.00020619,2]
[368031886,1750999847856,-614.99092968,0.00020625,2]
[368031888,1750999847866,-753.0,0.00020698,2]
[368031890,1750999847875,-7751.56468322,0.00020728,3]
[368031892,1750999847885,-753.0,0.00020739,2]
[368031894,1750999847894,-2108.73060915,0.00020799,2]
[368031896,1750999847903,-151.0,0.000208,3]
[368031898,1750999847912,-6537.875941,0.0002082,2]
[368031900,1750999847922,-3243.10585337,0.00020821,2]
[368031903,1750999847936,-3280.37059423,0.00020821,2]
[368031905,1750999847950,-165.43,0.00020821,2]
[368031907,1750999847963,-511.06,0.00020821,2]
[368031910,1750999847975,-460.0,0.00020821,2]
[368031912,1750999847987,-460.0,0.00020821,2]
[368031914,1750999848001,-460.0,0.00020821,2]
[368031917,1750999848013,-851.95,0.00020821,2]
[368031919,1750999848026,-460.0,0.00020821,2]
[368031921,1750999848039,-781.26,0.00020821,2]
[368031923,1750999848052,-460.0,0.00020821,2]
[368031926,1750999848065,-325.94266074,0.00020821,2]
[368031928,1750999848078,-460.0,0.00020821,2]
[368031930,1750999848091,-460.0,0.00020821,2]
[368031932,1750999848104,-460.0,0.00020821,2]
[368031935,1750999848120,-460.0,0.00020821,2]
[368031937,1750999848134,-511.66,0.00020821,2]
[368031940,1750999848147,-460.0,0.00020821,2]
[368031942,1750999848159,-523.51090805,0.00020821,2]
[368031944,1750999848171,-460.0,0.00020821,2]
[368031946,1750999848184,-755.82,0.00020821,2]
[368031948,1750999848196,-579.61,0.00020821,2]
[368031951,1750999848209,-460.0,0.00020821,2]
[368031953,1750999848220,-446.43353784,0.00020821,2]
[368031955,1750999848231,-460.0,0.00020821,2]
[368031957,1750999848242,-582.57,0.00020821,2]
[368031959,1750999848253,-1368.78,0.00020821,2]
[368031962,1750999848265,-594.68418213,0.00020821,2]
[368031964,1750999848278,-558.64,0.00020821,2]
[368031966,1750999848290,-460.0,0.00020821,2]
[368031968,1750999848302,-460.0,0.00020821,2]
[368031971,1750999848316,-525.28,0.00020821,2]
[368031973,1750999848328,-460.0,0.00020821,2]
[368031975,1750999848342,-698.59,0.00020821,2]
[368031978,1750999848355,-287.39502338,0.00020821,2]
[368031980,1750999848368,-1698.41,0.00020821,2]
[368031983,1750999848382,-460.0,0.00020821,2]
[368031985,1750999848393,-516.57,0.00020821,2]
[368031987,1750999848405,-460.0,0.00020821,2]
[368031989,1750999848415,-1646.94,0.00020821,2]
[368031991,1750999848426,-538.65,0.00020821,2]
[368031993,1750999848439,-460.0,0.00020821,2]
[368031995,1750999848451,-464.71,0.00020821,2]
[368031998,1750999848465,-2283.74,0.00020821,2]
[368032000,1750999848478,-460.0,0.00020821,2]
[368032002,1750999848489,-460.0,0.00020821,2]
[368032004,1750999848500,-245.065136,0.00020821,2]
[368032006,1750999848511,-1208.66,0.00020821,2]
[368032008,1750999848522,-460.0,0.00020821,2]
[368032011,1750999848535,-460.0,0.00020821,2]
[368032013,1750999848547,-837.04,0.00020821,2]
[368032015,1750999848558,-1824.86,0.00020821,2]
[368032017,1750999848568,-2140.66,0.00020821,2]
[368032019,1750999848579,-730.84,0.00020821,2]
[368032021,1750999848590,-789.54,0.00020821,2]
[368032022,1750999848601,-608.35,0.00020821,2]
[368032023,1750999848613,-460.0,0.00020821,2]
[368032024,1750999848625,-460.0,0.00020821,2]
[368032025,1750999848636,-582.08,0.00020821,2]
[368032027,1750999848648,-460.0,0.00020821,2]
[368032029,1750999848659,-460.0,0.00020821,2]
[368032032,1750999848671,-460.0,0.00020821,2]
[368032034,1750999848682,-460.0,0.00020821,2]
[368032036,1750999848694,-460.0,0.00020821,2]
[368032038,1750999848705,-460.0,0.00020821,2]
[368032040,1750999848716,-460.0,0.00020821,2]
[368032043,1750999848727,-1486.78,0.00020821,2]
[368032045,1750999848739,-503.6,0.00020821,2]
[368032047,1750999848750,-746.29,0.00020821,2]
[368032049,1750999848762,-460.0,0.00020821,2]
[368032051,1750999848773,-2370.59,0.00020821,2]
[368032053,1750999848783,-4034.46,0.00020821,2]
[368032055,1750999848795,-464.56,0.00020821,2]
[368032058,1750999848806,-460.0,0.00020821,2]
[368032060,1750999848818,-1565.51,0.00020821,2]
[368032062,1750999848829,-1932.3,0.00020821,2]
[368032064,1750999848841,-460.0,0.00020821,2]
[368032066,1750999848852,-769.44,0.00020821,2]
[368032069,1750999848863,-151.0,0.00020821,2]
[368032071,1750999848874,-151.0,0.00020821,2]
[368032073,1750999848886,-607.12,0.00020821,2]
[368032075,1750999848898,-692.62,0.00020821,2]
[368032077,1750999848908,-151.0,0.00020821,2]
[368032079,1750999848920,-460.0,0.00020821,2]
[368032082,1750999848932,-151.0,0.00020821,2]
[368032084,1750999848943,-3255.31,0.00020821,2]
[368032086,1750999848955,-1002.12,0.00020821,2]
[368032088,1750999848966,-1860.43,0.00020821,2]
[368032090,1750999848977,-460.0,0.00020821,2]
[368032092,1750999848988,-460.0,0.00020821,2]
[368032095,1750999849000,-1085.41,0.00020821,2]
[368032097,1750999849011,-919.91,0.00020821,2]
[368032099,1750999849023,-2262.32,0.00020821,2]
[368032101,1750999849034,-2108.73060916,0.00020835,2]
[368032103,1750999849045,-420.0,0.00020899,2]
[368032105,1750999849057,-500.0,0.00020933,2]
[368032108,1750999849068,-500.0,0.00020933,2]
[368032110,1750999849078,-500.0,0.00020933,2]
[368032112,1750999849090,-388.67351737,0.00020933,2]
[368032114,1750999849101,-7751.56468322,0.00020934,4]
[368032116,1750999849113,-5000.0,0.00020961,2]
[368032119,1750999849125,-151.0,0.00021094,2]
[368032121,1750999849137,-154.393851,0.00021094,2]
[368032123,1750999849149,-151.0,0.00021094,2]
[368032125,1750999849160,-151.0,0.00021094,2]
[368032127,1750999849171,-151.598614,0.00021094,2]
[368032130,1750999849183,-151.0,0.00021095,2]
[368032132,1750999849195,-151.0,0.00021095,2]
[368032134,1750999849206,-151.0,0.00021095,2]
[368032136,1750999849217,-151.369604,0.00021095,2]
[368032138,1750999849228,-153.022282,0.00021095,2]
[368032141,1750999849240,-511.06,0.00021095,2]
[368032143,1750999849251,-460.0,0.00021095,2]
[368032145,1750999849263,-460.0,0.00021095,2]
[368032147,1750999849273,-460.0,0.00021095,2]
[368032149,1750999849285,-851.95,0.00021095,2]
[368032152,1750999849296,-460.0,0.00021095,2]
[368032154,1750999849307,-781.26,0.00021095,2]
[368032156,1750999849316,-460.0,0.00021095,2]
[368032158,1750999849326,-460.0,0.00021095,2]
[368032160,1750999849335,-460.0,0.00021095,2]
[368032162,1750999849344,-511.66,0.00021095,2]
[368032164,1750999849353,-460.0,0.00021095,2]
[368032166,1750999849363,-235.570596,0.00021095,2]
[368032168,1750999849373,-755.82,0.00021095,2]
[368032170,1750999849383,-579.61,0.00021095,2]
[368032172,1750999849392,-214.77,0.00021095,2]
[368032174,1750999849401,-582.57,0.00021095,2]
[368032176,1750999849411,-460.0,0.00021095,2]
[368032178,1750999849421,-1368.78,0.00021095,2]
[368032180,1750999849432,-558.64,0.00021095,2]
[368032182,1750999849444,-460.0,0.00021095,2]
[368032184,1750999849454,-460.0,0.00021095,2]
[368032186,1750999849463,-525.28,0.00021095,2]
[368032188,1750999849473,-460.0,0.00021095,2]
[368032209,1750999849669,-272.19,0.00021095,2]
[368032212,1750999849686,-698.59,0.00021095,2]
[368032215,1750999849700,-1698.41,0.00021095,2]
[368032217,1750999849709,-460.0,0.00021095,2]
[368032219,1750999849719,-516.57,0.00021095,2]
[368032220,1750999849729,-460.0,0.00021095,2]
[368032222,1750999849740,-1646.94,0.00021095,2]
[368032224,1750999849749,-538.65,0.00021095,2]
[368032226,1750999849758,-237.29416851,0.00021095,2]
[368032228,1750999849767,-464.71,0.00021095,2]
[368032230,1750999849776,-2283.74,0.00021095,2]
[368032232,1750999849786,-460.0,0.00021095,2]
[368032234,1750999849795,-460.0,0.00021095,2]
[368032236,1750999849805,-1208.66,0.00021095,2]
[368032238,1750999849814,-460.0,0.00021095,2]
[368032240,1750999849823,-543.79,0.00021095,2]
[368032242,1750999849832,-837.04,0.00021095,2]
[368032244,1750999849842,-1824.86,0.00021095,2]
[368032246,1750999849851,-2140.66,0.00021095,2]
[368032248,1750999849860,-730.84,0.00021095,2]
[368032250,1750999849870,-789.54,0.00021095,2]
[368032252,1750999849879,-608.35,0.00021095,2]
[368032254,1750999849890,-175.364312,0.00021095,2]
[368032256,1750999849899,-460.0,0.00021095,2]
[368032258,1750999849909,-175.364312,0.00021095,2]
[368032260,1750999849918,-460.0,0.00021095,2]
[368032262,1750999849929,-582.08,0.00021095,2]
[368032264,1750999849938,-460.0,0.00021095,2]
[368032266,1750999849948,-460.0,0.00021095,2]
[368032268,1750999849957,-460.0,0.00021095,2]
[368032271,1750999849967,-151.0,0.00021095,2]
[368032273,1750999849977,-460.0,0.00021095,2]
[368032275,1750999849987,-460.0,0.00021095,2]
[368032277,1750999849996,-460.0,0.00021095,2]
[368032279,1750999850006,-167.32272818,0.00021095,2]
[368032281,1750999850016,-1486.78,0.00021095,2]
[368032283,1750999850026,-503.6,0.00021095,2]
[368032285,1750999850036,-746.29,0.00021095,2]
[368032287,1750999850045,-492.17239588,0.00021095,2]
[368032289,1750999850055,-2370.59,0.00021095,2]
[368032291,1750999850065,-4034.46,0.00021095,2]
[368032293,1750999850074,-464.56,0.00021095,2]
[368032295,1750999850084,-460.0,0.00021095,2]
[368032297,1750999850094,-1565.51,0.00021095,2]
[368032299,1750999850103,-1932.3,0.00021095,2]
[368032301,1750999850113,-460.0,0.00021095,2]
[368032303,1750999850123,-769.44,0.00021095,2]
[368032305,1750999850133,-607.12,0.00021095,2]
[368032307,1750999850142,-692.62,0.00021095,2]
[368032309,1750999850152,-460.0,0.00021095,2]
[368032311,1750999850164,-3255.31,0.00021095,2]
[368032313,1750999850174,-1002.12,0.00021095,2]
[368032315,1750999850183,-1860.43,0.00021095,2]
[368032317,1750999850193,-460.0,0.00021095,2]
[368032319,1750999850202,-460.0,0.00021095,2]
[368032321,1750999850212,-1085.41,0.00021095,2]
[368032323,1750999850222,-919.91,0.00021095,2]
[368032326,1750999850232,-2262.32,0.00021095,2]
[368032328,1750999850243,-151.0,0.000211,4]
[368032330,1750999850252,-151.0,0.000211,3]
[368032332,1750999850262,-865.535,0.0002112,2]
[368032334,1750999850271,-177.927,0.0002112,2]
[368032336,1750999850282,-7751.56468322,0.00021141,4]
[368032338,1750999850292,-174.38704177,0.00021151,2]
[368032340,1750999850303,-500.54053299,0.00021205,2]
[368032342,1750999850312,-306.0,0.00021205,2]
[368032344,1750999850322,-153.0,0.00021205,2]
[368032346,1750999850331,-153.0,0.00021205,2]
[368032348,1750999850340,-307.4082959,0.00021205,2]
[368032350,1750999850350,-153.0,0.00021233,2]
[368032352,1750999850359,-153.0,0.00021233,2]
[368032354,1750999850369,-153.0,0.00021233,2]
[368032356,1750999850379,-153.0,0.00021233,2]
[368032358,1750999850388,-215.0738,0.00021234,2]
[368032360,1750999850398,-753.0,0.00021249,2]
[368032362,1750999850408,-165.163626,0.00021258,2]
[368032364,1750999850418,-151.0,0.00021258,2]
[368032366,1750999850427,-151.0,0.00021258,2]
[368032368,1750999850442,-252.510402,0.00021258,2]
[368032370,1750999850451,-252.510402,0.00021258,2]
[368032372,1750999850461,-151.0,0.00021258,2]
[368032374,1750999850470,-151.0,0.00021258,2]
[368032376,1750999850479,-226.637287,0.00021258,2]
[368032378,1750999850488,-226.637287,0.00021258,2]
[368032380,1750999850498,-151.0,0.00021258,2]
[368032382,1750999850507,-151.0,0.00021258,2]
[368032384,1750999850516,-151.0,0.00021258,2]
[368032386,1750999850526,-151.0,0.00021258,2]
[368032388,1750999850536,-151.0,0.00021258,2]
[368032390,1750999850546,-752.335835,0.00021258,2]
[368032392,1750999850555,-752.335835,0.00021258,2]
[368032394,1750999850566,-151.0,0.00021258,2]
[368032396,1750999850575,-1303.936942,0.00021258,2]
[368032398,1750999850585,-151.0,0.00021258,2]
[368032400,1750999850595,-1303.936942,0.00021258,2]
[368032402,1750999850604,-614.99092968,0.00021262,2]
[368032404,1750999850613,-159.2394861,0.00021315,2]
[368032406,1750999850623,-153.0,0.00021315,2]
[368032408,1750999850633,-575.118961,0.00021315,2]
[368032410,1750999850642,-159.2394861,0.00021315,2]
[368032412,1750999850652,-153.0,0.00021315,2]
[368032414,1750999850661,-153.0,0.00021315,2]
[368032416,1750999850670,-159.2394861,0.00021315,2]